{"text_format":"1","workbook":"xlsx","n_sheets":2,"sheets":["Данные для заполнения","уведомление о прибытии 1"],"not_rendered":{"charts":0,"images":0,"macros":1,"external_links":1,"defined_names":0,"comments":0,"pivot_tables":0},"unopened":[],"bounds":{"document_bytes":16777216,"sheet_cells":100000,"rows_first":2000,"rows_last":500,"rows_between":2000,"halvings":0,"cell_chars":16384,"cell_head_chars":4096},"cells_cut":0,"cells_raw":0,"read":"whole","date_system":"1900"}

{"sheet":"Данные для заполнения","index":0,"n_rows":48,"n_cols":88,"rows_kept":48,"cut":false,"hidden":false,"merged":[]}
["Лицевая сторона",null,1,2,3,4,5,6,7,8,9,10,11,12,13,14,15,16,17,18,19,20,21,22,23,24,25,26,27,28,29,30,31,32,33,34,35,36,37,38,39,40,41,42,43,44,45,46,47,48,49,50,51,52,53,54,55,56,57,58,59,60,61,62,63,64,65,66,67,68,69,70,71,72,73,74,75,76,77,78,79,80,81,82,83,84,85,86]
["Наименование реквизита","Значение"]
["Сведения о иностранце"]
["Сведения о работодателе ФЛ",null,{"$f":"IF(LEN($B4)>=C$1,UPPER(RIGHT(LEFT($B4,C$1),1)),\"\")","v":""},"","","","","","","","","","","","","","","",{"$f":"IF(LEN($B4)>=S$1,UPPER(RIGHT(LEFT($B4,S$1),1)),\"\")","v":""},"","","","","","","","","","","","","","","",{"$f":"IF(LEN($B4)>=AI$1,UPPER(RIGHT(LEFT($B4,AI$1),1)),\"\")","v":""},"","","","","","","","","","","","","","","",{"$f":"IF(LEN($B4)>=AY$1,UPPER(RIGHT(LEFT($B4,AY$1),1)),\"\")","v":""},"","","","","","","","","","","","","","","",{"$f":"IF(LEN($B4)>=BO$1,UPPER(RIGHT(LEFT($B4,BO$1),1)),\"\")","v":""},"","","","","","","","","","","","","","","",{"$f":"IF(LEN($B4)>=CE$1,UPPER(RIGHT(LEFT($B4,CE$1),1)),\"\")","v":""},"","","","",""]
["Фамилия","Четвергов"]
["Имя","Александр"]
["Отчество","Александрович"]
["Серия паспорта",3611]
["Номер паспорта","547732"]
["Дата выдачи","10042012"]
["Кем выдан","ОУФМС России по Самарской области в Центральном районе г.Тольятти"]
["Место раположения работы","Ульяновская область"]
["Вид деятельности","45,2-строительство"]
["Особые условия",null,"","","","","","","","","","","","","","","","","","","","","","","","","","","","","","","","","","","","","","","","","","","","","","","","","","","","","","","","","","","","","","","","","","","","","","","","","","","","","","","","","","","","","",""]
["Оборотная сторона"]
["Дата и место постановки на учет по месту пребывания","г. Ульяновск, ул. Шевченко, д. 106  с 30.04.2010г. до 27.07.2010"]
["Профессия","маляр"]
["Документ подтверждающий квалификацию "]
["Планируемый период работы","1 год"]
["Адрес работы (строка 1)","432045, г. Ульяновск, ул. Промышленная, д.2А"]
["Адрес работы (строка 2)"]
["Данные о разрешении на работу, ранее выданном иностранному гражданину"]
["Серия"]
["№"]
["Дата выдачи"]
["Территория действия"]
["Срок действия"]
["Кем выдано"]
["Особые отметки в разрешение"]
["Данные о работодателе(строка 1)"]
["Данные о работодателе(строка 2)"]
[]
[]
["Фамилия","ИВАНОВ"]
["Имя","АБДУЛАЗИЗ "]
["Отчество","АБДУВАХОБ УГЛИ"]
["Гражданство","Узбекистан"]
["Адрес постоянного жительства"]
["Наименование документа","паспорт"]
["Серия документа","СС"]
["№ документа","0924249"]
["Дата выдачи","22092007"]
["Дата рождения","19062016"]
["пол","м"]
["Дата постановки на миграционный учет"]
["Дата продления миграционного учета"]
["Дата начала разрешения"]
["Дата окончания разрешения"]

{"sheet":"уведомление о прибытии 1","index":1,"n_rows":97,"n_cols":171,"rows_kept":97,"cut":false,"hidden":false,"merged":[[8,78,8,80],[8,82,8,84],[1,43,2,129],[3,114,3,135],[8,10,8,12],[8,14,8,16],[8,18,8,20],[8,22,8,24],[8,26,8,28],[8,30,8,32],[8,34,8,36],[8,38,8,40],[10,58,10,60],[10,62,10,64],[8,154,8,156],[10,10,10,12],[10,14,10,16],[10,18,10,20],[10,22,10,24],[10,26,10,28],[10,30,10,32],[8,114,8,116],[8,118,8,120],[8,122,8,124],[8,126,8,128],[8,130,8,132],[8,134,8,136],[8,90,8,92],[8,94,8,96],[8,98,8,100],[8,102,8,104],[8,106,8,108],[8,110,8,112],[8,66,8,68],[8,70,8,72],[8,74,8,76],[10,146,10,148],[10,150,10,152],[10,34,10,36],[10,38,10,40],[10,42,10,44],[10,46,10,48],[10,50,10,52],[10,54,10,56],[8,138,8,140],[8,146,8,148],[8,150,8,152],[8,86,8,88],[8,42,8,44],[8,46,8,48],[8,50,8,52],[8,54,8,56],[8,58,8,60],[8,62,8,64],[10,82,10,84],[10,86,10,88],[10,90,10,92],[10,94,10,96],[10,98,10,100],[10,102,10,104],[10,154,10,156],[10,106,10,108],[10,110,10,112],[10,118,10,120],[10,122,10,124],[10,126,10,128],[10,130,10,132],[11,10,11,160],[12,10,12,20],[12,22,12,24],[12,26,12,28],[12,30,12,32],[12,34,12,36],[12,38,12,40],[12,42,12,44],[12,46,12,48],[12,50,12,52],[10,66,10,68],[10,70,10,72],[10,74,10,76],[10,78,10,80],[10,134,10,136],[10,138,10,140],[10,142,10,144],[13,10,14,21],[14,22,15,24],[14,26,15,28],[14,30,15,32],[14,34,15,36],[14,38,15,40],[14,42,15,44],[12,126,12,128],[12,130,12,132],[12,102,12,104],[12,106,12,108],[12,110,12,112],[12,114,12,116],[12,118,12,120],[12,122,12,124],[12,78,12,80],[12,82,12,84],[12,86,12,88],[12,90,12,92],[12,94,12,96],[12,98,12,100],[12,54,12,56],[12,58,12,60],[12,62,12,64],[14,66,15,68],[12,150,12,152],[12,154,12,156],[12,158,12,160],[12,134,12,136],[12,138,12,140],[12,142,12,144],[12,146,12,148],[12,66,12,68],[12,70,12,72],[12,74,12,76],[14,142,15,144],[14,146,15,148],[14,150,15,152],[14,154,15,156],[14,158,15,160],[15,10,15,21],[14,118,15,120],[14,122,15,124],[14,126,15,128],[14,130,15,132],[14,134,15,136],[14,138,15,140],[14,94,15,96],[14,98,15,100],[14,102,15,104],[14,106,15,108],[14,110,15,112],[14,114,15,116],[14,70,15,72],[14,74,15,76],[14,78,15,80],[14,82,15,84],[14,86,15,88],[14,90,15,92],[14,46,15,48],[14,50,15,52],[14,54,15,56],[14,58,15,60],[14,62,15,64],[17,46,18,48],[17,50,18,52],[17,54,18,56],[17,58,18,60],[17,62,18,64],[17,66,18,68],[16,10,17,24],[17,26,18,28],[17,30,18,32],[17,34,18,36],[17,38,18,40],[17,42,18,44],[17,142,18,144],[17,146,18,148],[17,150,18,152],[17,154,18,156],[17,158,18,160],[18,10,18,24],[17,118,18,120],[17,122,18,124],[17,126,18,128],[17,130,18,132],[17,134,18,136],[17,138,18,140],[17,94,18,96],[17,98,18,100],[17,102,18,104],[17,106,18,108],[17,110,18,112],[17,114,18,116],[17,70,18,72],[17,74,18,76],[17,78,18,80],[17,82,18,84],[17,86,18,88],[17,90,18,92],[20,122,21,124],[21,10,21,20],[21,22,21,28],[21,37,21,45],[21,53,21,57],[21,81,21,86],[19,10,20,20],[20,30,21,32],[20,34,21,36],[20,46,21,48],[20,50,21,52],[20,58,21,60],[21,91,21,100],[21,111,21,120],[20,66,21,68],[20,70,21,72],[20,102,21,104],[22,10,23,28],[23,30,24,32],[23,34,24,36],[23,38,24,40],[23,42,24,44],[23,46,24,48],[23,50,24,52],[23,54,24,56],[20,62,21,64],[23,90,24,92],[23,94,24,96],[23,98,24,100],[23,102,24,104],[23,58,24,60],[23,62,24,64],[23,66,24,68],[23,70,24,72],[23,74,24,76],[23,78,24,80],[23,154,24,156],[23,158,24,160],[24,10,24,28],[25,10,26,28],[26,30,27,32],[26,34,27,36],[26,38,27,40],[26,42,27,44],[26,46,27,48],[26,50,27,52],[23,130,24,132],[23,134,24,136],[23,138,24,140],[23,142,24,144],[23,146,24,148],[23,150,24,152],[23,106,24,108],[23,110,24,112],[23,114,24,116],[23,118,24,120],[23,122,24,124],[23,126,24,128],[23,82,24,84],[23,86,24,88],[26,118,27,120],[26,122,27,124],[26,78,27,80],[26,82,27,84],[26,86,27,88],[26,90,27,92],[26,94,27,96],[26,98,27,100],[26,54,27,56],[26,58,27,60],[26,62,27,64],[26,66,27,68],[26,70,27,72],[26,74,27,76],[29,78,29,80],[29,82,29,84],[29,86,29,88],[29,90,29,92],[26,150,27,152],[26,154,27,156],[26,158,27,160],[27,10,27,28],[29,10,29,46],[29,48,29,52],[29,54,29,56],[29,58,29,60],[29,62,29,64],[29,66,29,68],[26,126,27,128],[26,130,27,132],[26,134,27,136],[26,138,27,140],[26,142,27,144],[26,146,27,148],[26,102,27,104],[26,106,27,108],[26,110,27,112],[26,114,27,116],[29,146,29,148],[29,150,29,152],[29,154,29,156],[29,158,29,160],[30,10,31,24],[30,72,31,88],[31,26,32,28],[31,30,32,32],[31,42,32,44],[31,46,32,48],[29,121,29,125],[29,126,29,128],[29,130,29,132],[29,134,29,136],[29,138,29,140],[29,142,29,144],[29,94,29,96],[29,97,29,105],[29,106,29,108],[29,110,29,112],[29,114,29,116],[29,118,29,120],[29,70,29,72],[29,74,29,76],[32,113,32,117],[31,106,32,108],[31,110,32,112],[31,118,32,120],[31,122,32,124],[31,126,32,128],[31,130,32,132],[31,54,32,56],[31,58,32,60],[31,62,32,64],[31,66,32,68],[31,90,32,92],[31,94,32,96],[35,66,36,89],[36,22,37,24],[36,50,37,52],[36,90,37,92],[36,106,37,108],[36,110,37,112],[32,10,32,22],[32,33,32,41],[32,49,32,53],[32,72,32,88],[32,97,32,105],[37,10,37,18],[37,26,37,48],[37,66,37,89],[37,97,37,104],[36,138,37,140],[36,142,37,144],[36,146,37,148],[36,150,37,152],[36,154,37,156],[36,158,37,160],[36,114,37,116],[36,118,37,120],[36,121,37,125],[36,126,37,128],[36,130,37,132],[36,134,37,136],[38,10,39,24],[38,72,39,88],[39,26,40,28],[39,30,40,32],[39,42,40,44],[39,46,40,48],[40,113,40,117],[39,106,40,108],[39,110,40,112],[39,118,40,120],[39,122,40,124],[39,126,40,128],[39,130,40,132],[39,54,40,56],[39,58,40,60],[39,62,40,64],[39,66,40,68],[39,90,40,92],[39,94,40,96],[42,38,42,40],[42,41,42,48],[42,50,42,52],[42,54,42,64],[40,10,40,22],[40,33,40,41],[40,49,40,53],[40,72,40,88],[40,97,40,105],[42,146,42,148],[45,10,45,23],[45,25,45,32],[45,34,45,36],[45,38,45,40],[45,41,45,49],[45,50,45,52],[45,54,45,56],[45,57,45,61],[45,62,45,64],[42,102,42,104],[42,105,42,113],[42,114,42,116],[42,117,42,132],[42,134,42,136],[42,137,42,145],[42,66,42,68],[42,70,42,76],[42,78,42,80],[42,81,42,88],[42,90,42,92],[42,93,42,101],[42,10,42,24],[42,26,42,36],[45,150,45,152],[45,154,45,156],[45,158,45,160],[47,10,47,31],[47,32,47,40],[47,42,47,44],[47,46,47,48],[47,50,47,52],[47,54,47,56],[47,57,47,61],[45,122,45,124],[45,125,45,133],[45,134,45,136],[45,138,45,140],[45,141,45,145],[45,146,45,148],[45,66,45,68],[45,70,45,72],[45,74,45,76],[45,86,45,107],[45,109,45,116],[45,118,45,120],[47,86,47,88],[47,125,47,133],[47,141,47,145],[49,10,53,24],[49,26,49,28],[49,30,49,32],[49,34,49,36],[49,38,49,40],[49,42,49,44],[49,46,49,48],[47,62,47,64],[47,66,47,68],[47,70,47,72],[47,74,47,76],[47,78,47,80],[47,82,47,84],[49,98,49,100],[49,105,59,160],[51,26,51,28],[51,30,51,32],[51,34,51,36],[51,38,51,40],[51,42,51,44],[51,46,51,48],[51,50,51,52],[51,54,51,56],[49,74,49,76],[49,78,49,80],[49,82,49,84],[49,86,49,88],[49,90,49,92],[49,94,49,96],[49,50,49,52],[49,54,49,56],[49,58,49,60],[49,62,49,64],[49,66,49,68],[49,70,49,72],[51,82,51,84],[51,86,51,88],[51,90,51,92],[51,94,51,96],[51,98,51,100],[55,10,61,25],[55,26,55,28],[55,30,55,32],[55,34,55,36],[55,38,55,40],[51,58,51,60],[51,62,51,64],[51,66,51,68],[51,70,51,72],[51,74,51,76],[51,78,51,80],[57,70,57,72],[55,90,55,92],[55,94,55,96],[55,98,55,100],[59,98,59,100],[55,102,55,104],[57,26,57,28],[57,30,57,32],[57,34,57,36],[57,38,57,40],[57,42,57,44],[57,46,57,48],[55,66,55,68],[55,70,55,72],[55,74,55,76],[55,78,55,80],[55,82,55,84],[55,86,55,88],[55,42,55,44],[55,46,55,48],[55,50,55,52],[55,54,55,56],[55,58,55,60],[55,62,55,64],[57,50,57,52],[57,54,57,56],[57,58,57,60],[57,62,57,64],[57,66,57,68],[59,102,59,104],[59,58,59,60],[59,62,59,64],[59,66,59,68],[59,70,59,72],[59,74,59,76],[59,78,59,80],[57,98,57,100],[57,102,57,104],[57,74,57,76],[57,78,57,80],[57,82,57,84],[57,86,57,88],[57,90,57,92],[57,94,57,96],[67,10,67,20],[67,22,67,24],[67,26,67,28],[67,30,67,32],[67,34,67,36],[59,82,59,84],[59,86,59,88],[59,90,59,92],[59,94,59,96],[59,26,59,28],[59,30,59,32],[59,34,59,36],[59,38,59,40],[59,42,59,44],[59,46,59,48],[59,50,59,52],[59,54,59,56],[67,38,67,40],[67,42,67,44],[67,46,67,48],[67,50,67,52],[67,54,67,56],[67,58,67,60],[67,62,67,64],[60,105,60,160],[61,105,61,160],[62,105,62,160],[63,105,63,160],[64,75,65,94],[67,94,67,96],[67,98,67,100],[67,102,67,104],[67,106,67,108],[67,122,67,124],[67,126,67,128],[67,130,67,132],[67,86,67,88],[67,90,67,92],[67,66,67,68],[67,70,67,72],[67,74,67,76],[67,78,67,80],[67,82,67,84],[67,158,67,160],[68,10,69,21],[69,22,70,24],[69,26,70,28],[69,30,70,32],[69,34,70,36],[69,38,70,40],[69,42,70,44],[69,46,70,48],[69,50,70,52],[67,134,67,136],[67,138,67,140],[67,142,67,144],[67,146,67,148],[67,150,67,152],[67,154,67,156],[67,110,67,112],[67,114,67,116],[67,118,67,120],[70,10,70,21],[71,10,72,24],[72,26,73,28],[72,30,73,32],[72,34,73,36],[72,38,73,40],[72,42,73,44],[69,126,70,128],[69,130,70,132],[69,102,70,104],[69,106,70,108],[69,110,70,112],[69,114,70,116],[69,118,70,120],[69,122,70,124],[69,78,70,80],[69,82,70,84],[69,86,70,88],[69,90,70,92],[69,94,70,96],[69,98,70,100],[69,54,70,56],[69,58,70,60],[69,62,70,64],[72,66,73,68],[69,150,70,152],[69,154,70,156],[69,158,70,160],[69,134,70,136],[69,138,70,140],[69,142,70,144],[69,146,70,148],[69,66,70,68],[69,70,70,72],[69,74,70,76],[72,142,73,144],[72,146,73,148],[72,150,73,152],[72,154,73,156],[72,158,73,160],[73,10,73,24],[72,118,73,120],[72,122,73,124],[72,126,73,128],[72,130,73,132],[72,134,73,136],[72,138,73,140],[72,94,73,96],[72,98,73,100],[72,102,73,104],[72,106,73,108],[72,110,73,112],[72,114,73,116],[72,70,73,72],[72,74,73,76],[72,78,73,80],[72,82,73,84],[72,86,73,88],[72,90,73,92],[72,46,73,48],[72,50,73,52],[72,54,73,56],[72,58,73,60],[72,62,73,64],[75,126,76,128],[76,10,76,20],[76,22,76,28],[76,37,76,45],[76,53,76,57],[76,85,76,94],[74,10,75,20],[75,30,76,32],[75,34,76,36],[75,46,76,48],[75,50,76,52],[75,58,76,60],[78,86,78,88],[78,90,78,92],[78,94,78,96],[78,97,78,105],[76,95,76,104],[76,115,76,124],[78,10,78,46],[78,48,78,52],[78,54,78,56],[78,58,78,60],[78,62,78,64],[78,66,78,68],[78,70,78,72],[78,74,78,76],[75,62,76,64],[75,66,76,68],[75,70,76,72],[75,106,76,108],[78,154,78,156],[78,158,78,160],[80,10,83,25],[81,30,82,32],[81,34,82,36],[81,38,82,40],[81,42,82,44],[81,46,82,48],[81,50,82,52],[81,54,82,56],[78,130,78,132],[78,134,78,136],[78,138,78,140],[78,142,78,144],[78,146,78,148],[78,150,78,152],[78,106,78,108],[78,110,78,112],[78,114,78,116],[78,118,78,120],[78,121,78,125],[78,126,78,128],[78,78,78,80],[78,82,78,84],[81,90,82,92],[81,94,82,96],[81,98,82,100],[81,102,82,104],[81,58,82,60],[81,62,82,64],[81,66,82,68],[81,70,82,72],[81,74,82,76],[81,78,82,80],[81,154,82,156],[81,158,82,160],[84,10,84,20],[84,22,84,24],[84,26,84,28],[84,30,84,32],[84,34,84,36],[84,38,84,40],[84,42,84,44],[84,46,84,48],[81,130,82,132],[81,134,82,136],[81,138,82,140],[81,142,82,144],[81,146,82,148],[81,150,82,152],[81,106,82,108],[81,110,82,112],[81,114,82,116],[81,118,82,120],[81,122,82,124],[81,126,82,128],[81,82,82,84],[81,86,82,88],[84,82,84,84],[84,86,84,88],[84,90,84,92],[84,94,84,96],[84,50,84,52],[84,54,84,56],[84,58,84,60],[84,62,84,64],[84,66,84,68],[84,70,84,72],[84,146,84,148],[84,150,84,152],[84,154,84,156],[84,158,84,160],[85,10,86,28],[86,30,87,32],[86,34,87,36],[86,38,87,40],[86,42,87,44],[86,46,87,48],[84,122,84,124],[84,126,84,128],[84,130,84,132],[84,134,84,136],[84,138,84,140],[84,142,84,144],[84,98,84,100],[84,102,84,104],[84,106,84,108],[84,110,84,112],[84,114,84,116],[84,118,84,120],[84,74,84,76],[84,78,84,80],[86,158,87,160],[87,10,87,28],[89,10,89,20],[89,22,89,24],[89,26,89,28],[89,30,89,32],[89,34,89,36],[86,122,87,124],[86,126,87,128],[86,130,87,132],[86,134,87,136],[86,138,87,140],[86,142,87,144],[86,98,87,100],[86,102,87,104],[86,106,87,108],[86,110,87,112],[86,114,87,116],[86,118,87,120],[86,74,87,76],[86,78,87,80],[86,82,87,84],[86,86,87,88],[86,90,87,92],[86,146,87,148],[86,150,87,152],[86,154,87,156],[86,94,87,96],[86,50,87,52],[86,54,87,56],[86,58,87,60],[86,62,87,64],[86,66,87,68],[86,70,87,72],[89,122,89,124],[89,126,89,128],[89,130,89,132],[89,38,89,40],[89,42,89,44],[89,46,89,48],[89,50,89,52],[89,54,89,56],[89,58,89,60],[89,94,89,96],[89,98,89,100],[89,102,89,104],[89,106,89,108],[89,62,89,64],[89,66,89,68],[89,70,89,72],[89,74,89,76],[91,78,91,80],[91,82,91,84],[93,82,93,84],[89,78,89,80],[89,82,89,84],[89,158,89,160],[91,10,91,17],[91,18,91,20],[91,22,91,24],[91,26,91,28],[91,30,91,32],[91,33,91,41],[91,42,91,44],[91,46,91,48],[91,50,91,52],[89,134,89,136],[89,138,89,140],[89,142,89,144],[89,146,89,148],[89,150,89,152],[89,154,89,156],[89,110,89,112],[89,114,89,116],[89,118,89,120],[94,21,95,117],[96,21,97,82],[93,58,93,60],[93,62,93,64],[93,65,93,69],[93,70,93,72],[93,74,93,76],[93,78,93,80],[89,86,89,88],[89,90,89,92],[91,85,91,97],[91,98,91,100],[91,102,91,104],[91,106,91,108],[91,110,91,112],[93,10,93,31],[93,34,93,40],[93,42,93,44],[93,46,93,48],[93,49,93,57],[91,54,91,56],[91,57,91,69],[91,70,91,72],[91,74,91,76]]}
[null,null,null,null,null,null,null,null,null,null,null,null,null,null,null,null,null,null,null,null,null,null,null,null,null,null,null,null,null,null,null,null,null,null,null,null,null,null,null,null,null,null,null,null,null,null,null,null,null,null,null,null,null,null,null,null,null,null,null,null,null,null,null,null,null,null,null,null,null,null,null,null,null,null,null,null,null,null,null,null,null,null,null,null,null,null,null,null,null,null,null,null,null,null,null,null,null,null,null,null,null,null,null,null,null,null,null,null,null,null,null,null,null,null,null,null,null,null,null,null,null,null,null,null,null,null,null,null,null,null,null,null,null,null,null,null,null,null,null,null,null,null,null,null,null,null,null,null,null,null,null,null,null,null,null,null,null,null,null,null,null,null,null,null,null,null,null,null,null,null,"Приложение № 2 к Приказу ФМС России от 23.09.2010 № 287"]
[null,null,null,null,null,null,null,null,null,null,null,null,null,null,null,null,null,null,null,null,null,null,null,null,null,null,null,null,null,null,null,null,null,null,null,null,null,null,null,null,null,null,null,"УВЕДОМЛЕНИЕ О ПРИБЫТИИ ИНОСТРАННОГО ГРАЖДАНИНА",null,null,null,null,null,null,null,null,null,null,null,null,null,null,null,null,null,null,null,null,null,null,null,null,null,null,null,null,null,null,null,null,null,null,null,null,null,null,null,null,null,null,null,null,null,null,null,null,null,null,null,null,null,null,null,null,null,null,null,null,null,null,null,null,null,null,null,null,null,null,null,null,null,null,null,null,null,null,null,null,null,null,null,null,null,null,null,null,null,null,null,null,null,null,null,null,null,null,null,null,null,null,null,null,null,null,null,null,null,null,null,null,null,null,null,null,null,null,null,null,null,null,null,null,null,null,"(в ред. Приказа ФМС РФ от 15.08.2011 № 319)"]
[]
[null,null,null,null,null,null,null,null,null,null,null,null,null,null,null,null,null,null,null,null,null,null,null,null,null,null,null,null,null,null,null,null,null,null,null,null,null,null,null,null,null,null,null,null,null,null,null,null,null,null,null,null,null,null,null,null,null,null,null,null,null,null,null,null,null,null,null,null,null,null,null,null,null,null,null,null,null,null,null,null,null,null,null,null,null,null,null,null,null,null,null,null,null,null,null,null,null,null,null,null,null,null,null,null,null,null,null,null,null,null,null,null,null,"ИЛИ ЛИЦА БЕЗ ГРАЖДАНСТВА В МЕСТО ПРЕБЫВАНИЯ "]
[]
[null,null,null,null,null,null,null,null,null,null,"Пожалуйста, заполняйте форму на русском языке, ручкой с черными или темно-синими чернилами, разборчиво,"]
[null,null,null,null,null,null,null,null,null,null,"заглавными печатными буквами и цифрами по следующим образцам:"]
[]
[null,null,null,null,null,null,null,null,null,null,"А",null,null,null,"Б",null,null,null,"В",null,null,null,"Г",null,null,null,"Д",null,null,null,"Е",null,null,null,"Ё",null,null,null,"Ж",null,null,null,"З",null,null,null,"И",null,null,null,"Й",null,null,null,"К",null,null,null,"Л",null,null,null,"М",null,null,null,"Н",null,null,null,"О",null,null,null,"П",null,null,null,"Р",null,null,null,"С",null,null,null,"Т",null,null,null,"У",null,null,null,"Ф",null,null,null,"Х",null,null,null,"Ц",null,null,null,"Ч",null,null,null,"Ш",null,null,null,"Щ",null,null,null,"Ъ",null,null,null,"Ы",null,null,null,"Ь",null,null,null,"Э",null,null,null,"Ю",null,null,null,"Я",null,null,null,null,null,null,null,"I",null,null,null,"V",null,null,null,"X"]
[]
[null,null,null,null,null,null,null,null,null,null,"A",null,null,null,"B",null,null,null,"C",null,null,null,"D",null,null,null,"E",null,null,null,"F",null,null,null,"G",null,null,null,"H",null,null,null,"I",null,null,null,"J",null,null,null,"K",null,null,null,"L",null,null,null,"M",null,null,null,"N",null,null,null,"O",null,null,null,"P",null,null,null,"Q",null,null,null,"R",null,null,null,"S",null,null,null,"T",null,null,null,"U",null,null,null,"V",null,null,null,"W",null,null,null,"X",null,null,null,"Y",null,null,null,"Z",null,null,null,null,null,null,null,0,null,null,null,1,null,null,null,2,null,null,null,3,null,null,null,4,null,null,null,5,null,null,null,6,null,null,null,7,null,null,null,8,null,null,null,9]
[null,null,null,null,null,null,null,null,null,null,"1. СВЕДЕНИЯ О ЛИЦЕ, ПОДЛЕЖАЩЕМ ПОСТАНОВКЕ НА УЧЕТ ПО МЕСТУ ПРЕБЫВАНИЯ"]
[null,null,null,null,null,null,null,null,null,null,"Фамилия",null,null,null,null,null,null,null,null,null,null,null,{"$f":"'Данные для заполнения'!#REF!","v":{"$error":"#REF!"}},null,null,null,{"$f":"'Данные для заполнения'!#REF!","v":{"$error":"#REF!"}},null,null,null,{"$f":"'Данные для заполнения'!#REF!","v":{"$error":"#REF!"}},null,null,null,{"$f":"'Данные для заполнения'!#REF!","v":{"$error":"#REF!"}},null,null,null,{"$f":"'Данные для заполнения'!#REF!","v":{"$error":"#REF!"}},null,null,null,{"$f":"'Данные для заполнения'!#REF!","v":{"$error":"#REF!"}},null,null,null,{"$f":"'Данные для заполнения'!#REF!","v":{"$error":"#REF!"}},null,null,null,{"$f":"'Данные для заполнения'!#REF!","v":{"$error":"#REF!"}},null,null,null,{"$f":"'Данные для заполнения'!#REF!","v":{"$error":"#REF!"}},null,null,null,{"$f":"'Данные для заполнения'!#REF!","v":{"$error":"#REF!"}},null,null,null,{"$f":"'[1]Данные для заполнения'!M4","v":""},null,null,null,{"$f":"'[1]Данные для заполнения'!N4","v":""},null,null,null,{"$f":"'[1]Данные для заполнения'!O4","v":""},null,null,null,{"$f":"'[1]Данные для заполнения'!P4","v":""},null,null,null,{"$f":"'[1]Данные для заполнения'!Q4","v":""},null,null,null,{"$f":"'[1]Данные для заполнения'!R4","v":""},null,null,null,{"$f":"'[1]Данные для заполнения'!S4","v":""},null,null,null,{"$f":"'[1]Данные для заполнения'!T4","v":""},null,null,null,{"$f":"'[1]Данные для заполнения'!U4","v":""}]
[null,null,null,null,null,null,null,null,null,null,"Имя,"]
[null,null,null,null,null,null,null,null,null,null,null,null,null,null,null,null,null,null,null,null,null,null,{"$f":"'[1]Данные для заполнения'!C5","v":"А"},null,null,null,{"$f":"'[1]Данные для заполнения'!D5","v":"Б"},null,null,null,{"$f":"'[1]Данные для заполнения'!E5","v":"Д"},null,null,null,{"$f":"'[1]Данные для заполнения'!F5","v":"У"},null,null,null,{"$f":"'[1]Данные для заполнения'!G5","v":"В"},null,null,null,{"$f":"'[1]Данные для заполнения'!H5","v":"А"},null,null,null,{"$f":"'[1]Данные для заполнения'!I5","v":"Х"},null,null,null,{"$f":"'[1]Данные для заполнения'!J5","v":"О"},null,null,null,{"$f":"'[1]Данные для заполнения'!K5","v":"Б"},null,null,null,{"$f":"'[1]Данные для заполнения'!L5&'[1]Данные для заполнения'!C6","v":" У"},null,null,null,{"$f":"'[1]Данные для заполнения'!C5","v":"А"},null,null,null,{"$f":"'[1]Данные для заполнения'!C5","v":"А"},null,null,null,{"$f":"'[1]Данные для заполнения'!C5","v":"А"}]
[null,null,null,null,null,null,null,null,null,null,"отчество"]
[null,null,null,null,null,null,null,null,null,null,"Гражданство,"]
[null,null,null,null,null,null,null,null,null,null,null,null,null,null,null,null,null,null,null,null,null,null,null,null,null,null,"У",null,null,null,"З",null,null,null,"Б",null,null,null,"Е",null,null,null,"К",null,null,null,"И",null,null,null,"С",null,null,null,"Т",null,null,null,"А",null,null,null,"Н"]
[null,null,null,null,null,null,null,null,null,null,"подданство"]
[null,null,null,null,null,null,null,null,null,null,"Дата"]
[null,null,null,null,null,null,null,null,null,null,null,null,null,null,null,null,null,null,null,null,null,null,null,null,null,null,null,null,null,null,0,null,null,null,3,null,null,null,null,null,null,null,null,null,null,null,0,null,null,null,1,null,null,null,null,null,null,null,1,null,null,null,9,null,null,null,9,null,null,null,0,null,null,null,null,null,null,null,null,null,null,null,null,null,null,null,null,null,null,null,null,null,null,null,null,null,null,null,null,null,null,null,"V"]
[null,null,null,null,null,null,null,null,null,null,"рождения:",null,null,null,null,null,null,null,null,null,null,null,"число",null,null,null,null,null,null,null,null,null,null,null,null,null,null,"месяц",null,null,null,null,null,null,null,null,null,null,null,null,null,null,null,"год",null,null,null,null,null,null,null,null,null,null,null,null,null,null,null,null,null,null,null,null,null,null,null,null,null,null,null,"Пол:",null,null,null,null,null,null,null,null,null,"мужской",null,null,null,null,null,null,null,null,null,null,null,null,null,null,null,null,null,null,null,"женский"]
[null,null,null,null,null,null,null,null,null,null,"Место рождения:"]
[null,null,null,null,null,null,null,null,null,null,null,null,null,null,null,null,null,null,null,null,null,null,null,null,null,null,null,null,null,null,"Р",null,null,null,"Е",null,null,null,"С",null,null,null,"П",null,null,null,"У",null,null,null,"Б",null,null,null,"Л",null,null,null,"И",null,null,null,"К",null,null,null,"А",null,null,null,null,null,null,null,"У",null,null,null,"З",null,null,null,"Б",null,null,null,"Е",null,null,null,"К",null,null,null,"И",null,null,null,"С",null,null,null,"Т",null,null,null,"А",null,null,null,"Н"]
[null,null,null,null,null,null,null,null,null,null,"государство"]
[null,null,null,null,null,null,null,null,null,null,"Город или другой"]
[null,null,null,null,null,null,null,null,null,null,null,null,null,null,null,null,null,null,null,null,null,null,null,null,null,null,null,null,null,null,"У",null,null,null,"З",null,null,null,"Б",null,null,null,"Е",null,null,null,"К",null,null,null,"И",null,null,null,"С",null,null,null,"Т",null,null,null,"А",null,null,null,"Н"]
[null,null,null,null,null,null,null,null,null,null,"населенный пункт"]
[]
[null,null,null,null,null,null,null,null,null,null,"Документ, удостоверяющий личность:",null,null,null,null,null,null,null,null,null,null,null,null,null,null,null,null,null,null,null,null,null,null,null,null,null,null,null,null,null,null,null,null,null,null,null,null,null,"вид",null,null,null,null,null,"П",null,null,null,"А",null,null,null,"С",null,null,null,"П",null,null,null,"О",null,null,null,"Р",null,null,null,"Т",null,null,null,null,null,null,null,null,null,null,null,null,null,null,null,null,null,null,"серия",null,null,null,null,null,null,null,null,"А",null,null,null,"А",null,null,null,null,null,null,null,null,null,null,"№",null,null,null,null,0,null,null,null,8,null,null,null,0,null,null,null,0,null,null,null,7,null,null,null,7,null,null,null,6]
[null,null,null,null,null,null,null,null,null,null,"Дата выдачи:",null,null,null,null,null,null,null,null,null,null,null,null,null,null,null,null,null,null,null,null,null,null,null,null,null,null,null,null,null,null,null,null,null,null,null,null,null,null,null,null,null,null,null,null,null,null,null,null,null,null,null,null,null,null,null,null,null,null,null,null,null,"Срок действия:"]
[null,null,null,null,null,null,null,null,null,null,null,null,null,null,null,null,null,null,null,null,null,null,null,null,null,null,0,null,null,null,5,null,null,null,null,null,null,null,null,null,null,null,0,null,null,null,2,null,null,null,null,null,null,null,2,null,null,null,0,null,null,null,1,null,null,null,3,null,null,null,null,null,null,null,null,null,null,null,null,null,null,null,null,null,null,null,null,null,null,null,0,null,null,null,4,null,null,null,null,null,null,null,null,null,null,null,0,null,null,null,2,null,null,null,null,null,null,null,2,null,null,null,0,null,null,null,2,null,null,null,3]
[null,null,null,null,null,null,null,null,null,null,"число",null,null,null,null,null,null,null,null,null,null,null,null,null,null,null,null,null,null,null,null,null,null,"месяц",null,null,null,null,null,null,null,null,null,null,null,null,null,null,null,"год",null,null,null,null,null,null,null,null,null,null,null,null,null,null,null,null,null,null,null,null,null,null,"число",null,null,null,null,null,null,null,null,null,null,null,null,null,null,null,null,null,null,null,null,null,null,null,null,"месяц",null,null,null,null,null,null,null,null,null,null,null,null,null,null,null,"год"]
[]
[null,null,null,null,null,null,null,null,null,null,"Вид и реквизиты документа, подтверждающего право на пребывание (проживание) в Российской Федерации"]
[null,null,null,null,null,null,null,null,null,null,null,null,null,null,null,null,null,null,null,null,null,null,null,null,null,null,null,null,null,null,null,null,null,null,null,null,null,null,null,null,null,null,null,null,null,null,null,null,null,null,null,null,null,null,null,null,null,null,null,null,null,null,null,null,null,null,"Разрешение на"]
[null,null,null,null,null,null,null,null,null,null,null,null,null,null,null,null,null,null,null,null,null,null,null,null,null,null,null,null,null,null,null,null,null,null,null,null,null,null,null,null,null,null,null,null,null,null,null,null,null,null,null,null,null,null,null,null,null,null,null,null,null,null,null,null,null,null,null,null,null,null,null,null,null,null,null,null,null,null,null,null,null,null,null,null,null,null,null,null,null,null,null,null,null,null,null,null,null,null,null,null,null,null,null,null,null,null,null,null,null,null,null,null,null,null,null,null,null,null,null,null,null,"№"]
[null,null,null,null,null,null,null,null,null,null,"Виза",null,null,null,null,null,null,null,null,null,null,null,null,null,null,null,"Вид на жительство",null,null,null,null,null,null,null,null,null,null,null,null,null,null,null,null,null,null,null,null,null,null,null,null,null,null,null,null,null,null,null,null,null,null,null,null,null,null,null,"временное проживание",null,null,null,null,null,null,null,null,null,null,null,null,null,null,null,null,null,null,null,null,null,null,null,null,null,null,null,null,null,null,"Серия"]
[null,null,null,null,null,null,null,null,null,null,"Дата выдачи:",null,null,null,null,null,null,null,null,null,null,null,null,null,null,null,null,null,null,null,null,null,null,null,null,null,null,null,null,null,null,null,null,null,null,null,null,null,null,null,null,null,null,null,null,null,null,null,null,null,null,null,null,null,null,null,null,null,null,null,null,null,"Срок действия:"]
[]
[null,null,null,null,null,null,null,null,null,null,"число",null,null,null,null,null,null,null,null,null,null,null,null,null,null,null,null,null,null,null,null,null,null,"месяц",null,null,null,null,null,null,null,null,null,null,null,null,null,null,null,"год",null,null,null,null,null,null,null,null,null,null,null,null,null,null,null,null,null,null,null,null,null,null,"число",null,null,null,null,null,null,null,null,null,null,null,null,null,null,null,null,null,null,null,null,null,null,null,null,"месяц",null,null,null,null,null,null,null,null,null,null,null,null,null,null,null,"год"]
[]
[null,null,null,null,null,null,null,null,null,null,"Цель въезда:",null,null,null,null,null,null,null,null,null,null,null,null,null,null,null,"служебная",null,null,null,null,null,null,null,null,null,null,null,null,null,null,"туризм",null,null,null,null,null,null,null,null,null,null,null,null,"деловая",null,null,null,null,null,null,null,null,null,null,null,null,null,null,null,"учеба",null,null,null,null,null,null,null,null,null,null,"работа",null,null,null,null,null,null,null,null,"V",null,null,"частная",null,null,null,null,null,null,null,null,null,null,null,"транзит",null,null,null,null,null,null,null,null,null,null,null,"гуманитарная",null,null,null,null,null,null,null,null,null,null,null,null,null,null,null,null,null,null,null,"другая"]
[]
[]
[null,null,null,null,null,null,null,null,null,null,"Дата въезда:",null,null,null,null,null,null,null,null,null,null,null,null,null,null,"число",null,null,null,null,null,null,null,null,3,null,null,null,0,null,null,"месяц",null,null,null,null,null,null,null,null,0,null,null,null,8,null,null,"год",null,null,null,null,2,null,null,null,0,null,null,null,1,null,null,null,3,null,null,null,null,null,null,null,null,null,null,null,"Срок пребывания до:",null,null,null,null,null,null,null,null,null,null,null,null,null,null,null,null,null,null,null,null,null,null,"число",null,null,null,null,null,null,null,null,2,null,null,null,7,null,null,"месяц",null,null,null,null,null,null,null,null,1,null,null,null,1,null,null,"год",null,null,null,null,2,null,null,null,0,null,null,null,1,null,null,null,3]
[]
[null,null,null,null,null,null,null,null,null,null,"Миграционная карта:",null,null,null,null,null,null,null,null,null,null,null,null,null,null,null,null,null,null,null,null,null,"серия",null,null,null,null,null,null,null,null,null,4,null,null,null,6,null,null,null,1,null,null,null,1,null,null,"№",null,null,null,null,2,null,null,null,7,null,null,null,2,null,null,null,8,null,null,null,5,null,null,null,4,null,null,null,4]
[]
[null,null,null,null,null,null,null,null,null,null,"Сведения\nо законных представи-телях"]
[]
[]
[]
[]
[]
[null,null,null,null,null,null,null,null,null,null,"Адрес прежнего места пребывания \nв Российской Федерации",null,null,null,null,null,null,null,null,null,null,null,null,null,null,null,"У",null,null,null,"Л",null,null,null,"Ь",null,null,null,"Я",null,null,null,"Н",null,null,null,"О",null,null,null,"В",null,null,null,"С",null,null,null,"К",null,null,null,"А",null,null,null,"Я",null,null,null,null,null,null,null,"О",null,null,null,"Б",null,null,null,"Л",null,null,null,null,null,null,null,"З",null,null,null,"А",null,null,null,"С"]
[]
[null,null,null,null,null,null,null,null,null,null,null,null,null,null,null,null,null,null,null,null,null,null,null,null,null,null,"В",null,null,null,"И",null,null,null,"Я",null,null,null,"Ж",null,null,null,"С",null,null,null,"К",null,null,null,"И",null,null,null,"Й",null,null,null,"Р-",null,null,null,"ОН",null,null,null,"Г.",null,null,null,"У",null,null,null,"Л",null,null,null,"Ь",null,null,null,"Я",null,null,null,"Н",null,null,null,"О",null,null,null,"В",null,null,null,"С",null,null,null,"К"]
[]
[null,null,null,null,null,null,null,null,null,null,null,null,null,null,null,null,null,null,null,null,null,null,null,null,null,null,"У",null,null,null,"Л.",null,null,null,"Х",null,null,null,"А",null,null,null,"Р",null,null,null,"Ь",null,null,null,"К",null,null,null,"О",null,null,null,"В",null,null,null,"С",null,null,null,"К",null,null,null,"А",null,null,null,"Я",null,null,null,null,null,null,null,"Д.",null,null,null,1,null,null,null,7]
[null,null,null,null,null,null,null,null,null,null,null,null,null,null,null,null,null,null,null,null,null,null,null,null,null,null,null,null,null,null,null,null,null,null,null,null,null,null,null,null,null,null,null,null,null,null,null,null,null,null,null,null,null,null,null,null,null,null,null,null,null,null,null,null,null,null,null,null,null,null,null,null,null,null,null,null,null,null,null,null,null,null,null,null,null,null,null,null,null,null,null,null,null,null,null,null,null,null,null,null,null,null,null,null,null,"Отметка о подтверждении выполнения принимающей"]
[null,null,null,null,null,null,null,null,null,null,null,null,null,null,null,null,null,null,null,null,null,null,null,null,null,null,null,null,null,null,null,null,null,null,null,null,null,null,null,null,null,null,null,null,null,null,null,null,null,null,null,null,null,null,null,null,null,null,null,null,null,null,null,null,null,null,null,null,null,null,null,null,null,null,null,null,null,null,null,null,null,null,null,null,null,null,null,null,null,null,null,null,null,null,null,null,null,null,null,null,null,null,null,null,null,"стороной и иностранным гражданином действий,"]
[null,null,null,null,null,null,null,null,null,null,null,null,null,null,null,null,null,null,null,null,null,null,null,null,null,null,null,null,null,null,null,null,null,null,null,null,null,null,null,null,null,null,null,null,null,null,null,null,null,null,null,null,null,null,null,null,null,null,null,null,null,null,null,null,null,null,null,null,null,null,null,null,null,null,null,null,null,null,null,null,null,null,null,null,null,null,null,null,null,null,null,null,null,null,null,null,null,null,null,null,null,null,null,null,null,"необходимых для его постановки на учет"]
[null,null,null,null,null,null,null,null,null,null,null,null,null,null,null,null,null,null,null,null,null,null,null,null,null,null,null,null,null,null,null,null,null,null,null,null,null,null,null,null,null,null,null,null,null,null,null,null,null,null,null,null,null,null,null,null,null,null,null,null,null,null,null,null,null,null,null,null,null,null,null,null,null,null,null,null,null,null,null,null,null,null,null,null,null,null,null,null,null,null,null,null,null,null,null,null,null,null,null,null,null,null,null,null,null,"по месту пребывания"]
[null,null,null,null,null,null,null,null,null,null,null,null,null,null,null,null,null,null,null,null,null,null,null,null,null,null,null,null,null,null,null,null,null,null,null,null,null,null,null,null,null,null,null,null,null,null,null,null,null,null,null,null,null,null,null,null,null,null,null,null,null,null,null,null,null,null,null,null,null,null,null,null,null,null,null,"Линия  отрыва"]
[]
[null,null,null,null,null,null,null,null,null,null,"Настоящим подтверждается, что"]
[null,null,null,null,null,null,null,null,null,null,"Фамилия",null,null,null,null,null,null,null,null,null,null,null,"А",null,null,null,"Б",null,null,null,"Д",null,null,null,"У",null,null,null,"В",null,null,null,"А",null,null,null,"Х",null,null,null,"О",null,null,null,"Б",null,null,null,"О",null,null,null,"В"]
[null,null,null,null,null,null,null,null,null,null,"Имя,"]
[null,null,null,null,null,null,null,null,null,null,null,null,null,null,null,null,null,null,null,null,null,null,"М",null,null,null,"И",null,null,null,"Р",null,null,null,"З",null,null,null,"А",null,null,null,"Ю",null,null,null,"С",null,null,null,"У",null,null,null,"Ф",null,null,null,null,null,null,null,"А",null,null,null,"Б",null,null,null,"Д",null,null,null,"У",null,null,null,"В",null,null,null,"А",null,null,null,"Х",null,null,null,"О",null,null,null,"Б",null,null,null,null,null,null,null,"У",null,null,null,"Г",null,null,null,"Л",null,null,null,"И"]
[null,null,null,null,null,null,null,null,null,null,"отчество"]
[null,null,null,null,null,null,null,null,null,null,"Гражданство,"]
[null,null,null,null,null,null,null,null,null,null,null,null,null,null,null,null,null,null,null,null,null,null,null,null,null,null,"У",null,null,null,"З",null,null,null,"Б",null,null,null,"Е",null,null,null,"К",null,null,null,"И",null,null,null,"С",null,null,null,"Т",null,null,null,"А",null,null,null,"Н"]
[null,null,null,null,null,null,null,null,null,null,"подданство"]
[null,null,null,null,null,null,null,null,null,null,"Дата"]
[null,null,null,null,null,null,null,null,null,null,null,null,null,null,null,null,null,null,null,null,null,null,null,null,null,null,null,null,null,null,{"$f":"AE21","v":0},null,null,null,{"$f":"AI21","v":3},null,null,null,null,null,null,null,null,null,null,null,{"$f":"AU21","v":0},null,null,null,{"$f":"AY21","v":1},null,null,null,null,null,null,null,{"$f":"BG21","v":1},null,null,null,{"$f":"BK21","v":9},null,null,null,{"$f":"BO21","v":9},null,null,null,{"$f":"BS21","v":0},null,null,null,null,null,null,null,null,null,null,null,null,null,null,null,null,null,null,null,null,null,null,null,null,null,null,null,null,null,null,null,null,null,null,null,"V"]
[null,null,null,null,null,null,null,null,null,null,"рождения:",null,null,null,null,null,null,null,null,null,null,null,"число",null,null,null,null,null,null,null,null,null,null,null,null,null,null,"месяц",null,null,null,null,null,null,null,null,null,null,null,null,null,null,null,"год",null,null,null,null,null,null,null,null,null,null,null,null,null,null,null,null,null,null,null,null,null,null,null,null,null,null,null,null,null,null,null,"Пол:",null,null,null,null,null,null,null,null,null,"мужской",null,null,null,null,null,null,null,null,null,null,null,null,null,null,null,null,null,null,null,"женский"]
[]
[null,null,null,null,null,null,null,null,null,null,"Документ, удостоверяющий личность:",null,null,null,null,null,null,null,null,null,null,null,null,null,null,null,null,null,null,null,null,null,null,null,null,null,null,null,null,null,null,null,null,null,null,null,null,null,"вид",null,null,null,null,null,"П",null,null,null,"А",null,null,null,"С",null,null,null,"П",null,null,null,"О",null,null,null,"Р",null,null,null,"Т",null,null,null,null,null,null,null,null,null,null,null,null,null,null,null,null,null,null,"серия",null,null,null,null,null,null,null,null,{"$f":"DC30","v":"А"},null,null,null,{"$f":"DG30","v":"А"},null,null,null,null,null,null,null,null,null,null,"№",null,null,null,null,{"$f":"DW30","v":0},null,null,null,{"$f":"EA30","v":8},null,null,null,{"$f":"EE30","v":0},null,null,null,{"$f":"EI30","v":0},null,null,null,{"$f":"EM30","v":7},null,null,null,{"$f":"EQ30","v":7},null,null,null,{"$f":"EU30","v":6}]
[null,null,null,null,null,null,null,null,null,null,"в установленном порядке уведомил о прибытии в место пребывания по адресу:"]
[null,null,null,null,null,null,null,null,null,null,"Область, край,\nреспублика, АО"]
[null,null,null,null,null,null,null,null,null,null,null,null,null,null,null,null,null,null,null,null,null,null,null,null,null,null,null,null,null,null,"У",null,null,null,"Л",null,null,null,"Ь",null,null,null,"Я",null,null,null,"Н",null,null,null,"О",null,null,null,"В",null,null,null,"С",null,null,null,"К",null,null,null,"А",null,null,null,"Я"]
[]
[]
[null,null,null,null,null,null,null,null,null,null,"Район",null,null,null,null,null,null,null,null,null,null,null,"Л",null,null,null,"Е",null,null,null,"Н",null,null,null,"И",null,null,null,"Н",null,null,null,"С",null,null,null,"К",null,null,null,"И",null,null,null,"Й"]
[null,null,null,null,null,null,null,null,null,null,"Город или другой"]
[null,null,null,null,null,null,null,null,null,null,null,null,null,null,null,null,null,null,null,null,null,null,null,null,null,null,null,null,null,null,"У",null,null,null,"Л",null,null,null,"Ь",null,null,null,"Я",null,null,null,"Н",null,null,null,"О",null,null,null,"В",null,null,null,"С",null,null,null,"К"]
[null,null,null,null,null,null,null,null,null,null,"населенный пункт"]
[]
[null,null,null,null,null,null,null,null,null,null,"Улица",null,null,null,null,null,null,null,null,null,null,null,"Ш",null,null,null,"Е",null,null,null,"В",null,null,null,"Ч",null,null,null,"Е",null,null,null,"Н",null,null,null,"К",null,null,null,"О"]
[]
[null,null,null,null,null,null,null,null,null,null,"Дом",null,null,null,null,null,null,null,1,null,null,null,0,null,null,null,6,null,null,null,null,null,null,"Корпус",null,null,null,null,null,null,null,null,null,null,null,null,null,null,null,null,null,null,null,null,null,null,null,"Строение",null,null,null,null,null,null,null,null,null,null,null,null,null,null,null,null,null,null,null,null,null,null,null,null,null,null,null,"Квартира"]
[]
[null,null,null,null,null,null,null,null,null,null,"Срок пребывания до:",null,null,null,null,null,null,null,null,null,null,null,null,null,null,null,null,null,null,null,null,null,null,null,"число",null,null,null,null,null,null,null,{"$f":"DO46","v":2},null,null,null,{"$f":"DS46","v":7},null,null,"месяц",null,null,null,null,null,null,null,null,{"$f":"EE46","v":1},null,null,null,{"$f":"EI46","v":1},null,null,"год",null,null,null,null,{"$f":"EQ46","v":2},null,null,null,{"$f":"EU46","v":0},null,null,null,{"$f":"EY46","v":1},null,null,null,{"$f":"FC46","v":3}]
[null,null,null,null,null,null,null,null,null,null,null,null,null,null,null,null,null,null,null,null,null,"ОТРЫВНАЯ ЧАСТЬ БЛАНКА УВЕДОМЛЕНИЯ О ПРИБЫТИИ ИНОСТРАННОГО ГРАЖДАНИНА"]
[]
[null,null,null,null,null,null,null,null,null,null,null,null,null,null,null,null,null,null,null,null,null,"ИЛИ ЛИЦА БЕЗ ГРАЖДАНСТВА В МЕСТО ПРЕБЫВАНИЯ"]